fUST/lending_fUST_20240119
["ID","MTS","AMOUNT","RATE_DAILY","PERIOD"]
[312093296,1705613250327,-427.839081,0.00036997,120]
[312093297,1705613250350,-591.69239792,0.00037899,2]
[312093298,1705613250374,-333.00867696,0.00037899,4]
[312093299,1705613250397,-1719.41141957,0.00037899,15]
[312093300,1705613250420,-13075.82014714,0.000379,2]
[312093647,1705613439802,-154.93802479,0.00034108,5]
[312093649,1705613439812,-759.29962237,0.00034108,30]
[312093650,1705613439821,-1521.62343863,0.00035,15]
[312093652,1705613440492,-197.78798094,0.00035,15]
[312093653,1705613440501,-333.00867696,0.0003659,4]
[312093654,1705613440511,-591.69239792,0.00036591,2]
[312093655,1705613440521,-34.980919,0.00036592,2]
[312093656,1705613440536,-132.379858,0.00036592,2]
[312093657,1705613440546,-2084.34070549,0.00037708,4]
[312093658,1705613440556,-242.30309088,0.0003771,5]
[312093659,1705613440565,-1273.45080855,0.00037889,2]
[312093660,1705613440575,-2154.69,0.0003789,3]
[312093661,1705613440584,-3689.6,0.0003789,3]
[312093662,1705613440594,-3074.67,0.0003789,3]
[312093663,1705613440603,-5809.33368907,0.00037898,4]
[312093664,1705613440613,-497.1966646,0.00037899,2]
[312093665,1705613440623,-480.5367746,0.00037899,2]
[312093666,1705613440632,-5851.16340821,0.000379,2]
[312093671,1705613441022,-2709.11994142,0.000379,2]
[312093677,1705613442140,-78442.52166,0.000379,2]
[312093678,1705613442151,-4759.72875217,0.000379,2]
[312093679,1705613442163,-976.6996919,0.000379,2]
[312093680,1705613442174,-4563.65091331,0.000379,2]
[312093681,1705613442186,-6520.58608091,0.000379,2]
[312093682,1705613442197,-6310.27655968,0.000379,2]
[312093683,1705613442208,-2048.893896,0.000379,2]
[312093684,1705613442299,-403.5335302,0.000379,2]
[312093685,1705613442310,-41084.14413967,0.000379,2]
[312093686,1705613442320,-410.41281499,0.000379,4]
[312093687,1705613442329,-351.14579978,0.000379,4]
[312093688,1705613442338,-618.0,0.0003797,30]
[312093689,1705613442347,-618.0,0.0003798,30]
[312093690,1705613442357,-618.0,0.0003799,30]
[312093691,1705613442366,-673.87286433,0.00037998,4]
[312093692,1705613442376,-500.0,0.00037999,4]
[312093693,1705613442385,-490.930323,0.00037999,4]
[312093694,1705613442394,-603.79575089,0.00037999,4]
[312093695,1705613442404,-500.0,0.00037999,4]
[312093696,1705613442414,-500.0,0.00037999,4]
[312093697,1705613442422,-259.86730846,0.00037999,4]
[312093698,1705613442431,-193.32533948,0.00037999,4]
[312093699,1705613442441,-256.0622117,0.00038,3]
[312093700,1705613442450,-2412.35483865,0.00038,4]
[312093701,1705613442462,-1243.64942372,0.00038,4]
[312093756,1705613443701,-9113.92528216,0.00038,4]
[312093757,1705613443713,-628.89999999,0.00038,4]
[312093767,1705613443826,-2063.87443136,0.00038,4]
[312093771,1705613443838,-6753.54154503,0.00038,4]
[312093784,1705613446752,-2562.22,0.0003799,3]
[312093785,1705613446762,-14046.34636,0.00038,4]
[312093786,1705613446773,-463.36013766,0.00038,4]
[312093787,1705613446807,-110000.19131326,0.00038,4]
[312093883,1705614446102,-154.93802479,0.00030119,5]
[312093884,1705614446125,-164.397356,0.00030137,2]
[312093885,1705614446149,-3636.80057737,0.00032059,5]
[312093886,1705614446169,-5914.32694762,0.0003206,4]
[312093887,1705614446193,-266.50304157,0.00032061,2]
[312093888,1705614446217,-445.72062699,0.00032063,2]
[312093889,1705614446249,-291.84594642,0.00032063,2]
[312093890,1705614446270,-152.92830631,0.0003228,7]
[312093891,1705614446291,-2178.52952123,0.00032527,2]
[312093894,1705614571152,-24900.0,0.00031841,2]
[312093895,1705614571174,-154.93802479,0.00032516,4]
[312093896,1705614571195,-1273.45080855,0.00032517,2]
[312093897,1705614571217,-154.93802479,0.00032525,5]
[312093898,1705614571239,-410.41281499,0.00032527,4]
[312093899,1705614571273,-351.14579978,0.00032527,4]
[312093900,1705614571296,-152.0,0.00033,2]
[312093901,1705614571321,-13415.70235011,0.0003331,5]
[312093902,1705614571343,-2828.09875205,0.0003331,5]
[312093903,1705614571365,-16937.0723596,0.00033334,5]
[312093904,1705614571386,-341.45225506,0.00033346,4]
[312093905,1705614571408,-4773.2213356,0.00033347,5]
[312093906,1705614571429,-152.92830631,0.00033377,7]
[312093907,1705614571450,-164.397356,0.00033973,2]
[312093908,1705614571471,-723.25492323,0.00034198,30]
[312093909,1705614571492,-152.0,0.00034521,2]
[312093910,1705614571513,-3636.80057737,0.00034999,5]
[312093911,1705614571533,-201.93942625,0.00035,2]
[312093912,1705614571553,-591.69239792,0.00035251,2]
[312093913,1705614571573,-1719.41141957,0.00035262,15]
[312093914,1705614571593,-2084.34070549,0.00035263,4]
[312093915,1705614571614,-333.00867696,0.00035264,4]
[312093916,1705614571635,-250.0,0.00035265,15]
[312093917,1705614571663,-668.754089,0.00035616,120]
[312093918,1705614571686,-153.77573265,0.00035647,7]
[312093919,1705614571708,-201.93942625,0.000357,2]
[312093920,1705614571732,-1014.05866009,0.000359,2]
[312093921,1705614571752,-153.0,0.00036247,2]
[312093922,1705614571773,-50.25591444,0.000364,2]
[312093979,1705614631805,-1273.45080855,0.00032517,2]
[312093980,1705614631814,-209.04552365,0.00032527,4]
[312094087,1705614639198,-63.29368104,0.00032527,4]
[312094089,1705614639207,-477.5694703,0.00032527,4]
[312094091,1705614639217,-154.93802479,0.00034108,5]
[312094093,1705614639226,-150.95004265,0.00035616,7]
[312094094,1705614639236,-151.68351181,0.000364,2]
[312094095,1705614639245,-428.744075,0.00036575,4]
[312094096,1705614639254,-242.3273115,0.000371,5]
[312094097,1705614639264,-5000.0,0.00037709,7]
[312094098,1705614639273,-5000.0,0.00037722,7]
[312094099,1705614639282,-242.3273115,0.000378,5]
[312094100,1705614639291,-164.397356,0.00037808,2]
[312094101,1705614639300,-1482.77,0.0003789,3]
[312094102,1705614639312,-1682.12,0.0003789,3]
[312094103,1705614639321,-1607.7,0.0003789,3]
[312094104,1705614639331,-250.61808958,0.00037898,4]
[312094105,1705614639340,-594.07215949,0.00037898,4]
[312094106,1705614639349,-2176.85941571,0.00037898,4]
[312094107,1705614639359,-258.65098072,0.00037898,4]
[312094108,1705614639369,-154.9690062,0.00037898,4]
[312094109,1705614639378,-333.00867696,0.00037898,4]
[312094110,1705614639387,-2084.34070549,0.00037898,4]
[312094111,1705614639397,-591.69239792,0.00037898,2]
[312094112,1705614639406,-3147.58592605,0.00037898,5]
[312094113,1705614639415,-1719.41141957,0.00037898,15]
[312094114,1705614639425,-252.0,0.00037899,2]
[312094115,1705614639434,-2951.42901742,0.00037899,4]
[312094116,1705614639443,-500.0,0.00037899,2]
[312094117,1705614639453,-500.0,0.00037899,2]
[312094118,1705614639462,-436.72352645,0.00037899,2]
[312094119,1705614639471,-278.61236444,0.00037899,2]
[312094120,1705614639480,-208.80538298,0.00037899,2]
[312094121,1705614639489,-398.4148472,0.00037899,2]
[312094122,1705614639499,-500.0,0.00037899,2]
[312094123,1705614639507,-62.62141992,0.00037899,2]
[312094124,1705614639519,-437.37858008,0.00037899,2]
[312094125,1705614639528,-500.0,0.00037899,2]
[312094126,1705614639538,-11602.41550559,0.000379,2]
[312094132,1705614640966,-337.31600256,0.000379,2]
[312094133,1705614640979,-432.834999,0.000379,2]
[312094224,1705614642949,-2155.0,0.000379,2]
[312094247,1705614646079,-152.0,0.00036,2]
[312094248,1705614646088,-727.68617635,0.00036389,2]
[312094249,1705614646098,-1339.75,0.0003789,3]
[312094250,1705614646107,-9655.40903736,0.000379,2]
[312094357,1705615586232,-154.93802479,0.00027499,4]
[312094358,1705615586259,-616.06197521,0.000275,2]
[312094375,1705615633088,-26435.58252508,0.000275,2]
[312094376,1705615633110,-620.26741538,0.000275,2]
[312094377,1705615633130,-6539.94705553,0.00028,2]
[312094378,1705615633150,-2191.947309,0.0003,2]
[312094379,1705615633171,-1094.06981892,0.0003,3]
[312094380,1705615633192,-7302.36475858,0.0003,3]
[312094381,1705615633215,-153.25962465,0.00030035,7]
[312094382,1705615633235,-164.397356,0.00030137,2]
[312094383,1705615633256,-200.0,0.00030249,15]
[312094384,1705615633277,-10870.0726456,0.00030687,2]
[312094385,1705615633298,-153.25962465,0.0003191,7]
[312094386,1705615633320,-451.22058155,0.00032068,2]
[312094387,1705615633340,-2025.74284634,0.00033,2]
[312094388,1705615633361,-469.6351844,0.00033,3]
[312094389,1705615633380,-386.32476631,0.00033,2]
[312094390,1705615633402,-4241.26025801,0.00033228,3]
[312094391,1705615639002,247.9907633,0.000275,2]
[312094392,1705615643456,7343.0092367,0.000275,7]
[312094393,1705615652143,-7718.46,0.0002749,3]
[312094394,1705615652164,-39125.59511435,0.000275,7]
[312094401,1705615755135,-154.92253873,0.00027489,4]
[312094402,1705615755157,-7697.06,0.0002749,3]
[312094403,1705615755179,-6414.22,0.0002749,3]
[312094404,1705615755200,-119375.48721235,0.000275,7]
[312094405,1705615760182,-5345.18,0.0002749,3]
[312094406,1705615760204,-118146.75617023,0.000275,7]
[312094407,1705615760224,-620.26741538,0.000275,2]
[312094408,1705615760243,-247.9907633,0.000275,2]
[312094409,1705615760264,-3836.57845187,0.000275,2]
[312094410,1705615760284,-10293.9434922,0.000275,2]
[312094411,1705615760307,-154.92253873,0.000275,2]
[312094412,1705615760329,-154.92253873,0.000275,2]
[312094413,1705615760442,-534.78217617,0.000275,2]
[312094414,1705615760463,-151.44647945,0.00032026,7]
[312094415,1705615760485,-153.5466936,0.00032395,7]
[312094416,1705615760504,-12417.38541381,0.00033248,4]
[312094417,1705615760525,-280.0,0.00033274,15]
[312094418,1705615760548,-6257.57090449,0.0003346,5]
[312094419,1705615760571,-5645.69078653,0.00033526,5]
[312094420,1705615760595,-4377.30160485,0.00033526,5]
[312094421,1705615760615,-160.93,0.0003399,30]
[312094422,1705615760635,-25153.93120552,0.00034,2]
[312094423,1705615760656,-26030.47590095,0.00034,2]
[312094424,1705615760676,-153.5466936,0.00034,7]
[312094425,1705615760697,-151.44647946,0.0003449,7]
[312094426,1705615760728,-152.92769788,0.00034647,7]
[312094427,1705615760755,-4524.1727615,0.00034648,4]
[312094428,1705615760778,-155.79751346,0.000349,2]
[312094429,1705615760799,-154.93802479,0.00034998,4]
[312094430,1705615760821,-154.93802479,0.00034998,4]
[312094431,1705615760845,-154.93802479,0.00034998,4]
[312094432,1705615760867,-154.93802479,0.00034998,4]
[312094433,1705615760890,-939.20081235,0.00035,3]
[312094512,1705615832039,-1231.84526511,0.000275,7]
[312094514,1705615832054,-67211.70268604,0.000275,7]
[312094516,1705615832066,-32307.13855253,0.000275,7]
[312094519,1705615832077,-160.17684779,0.000275,2]
[312094522,1705615832087,-200.0,0.00030249,15]
[312094525,1705615832097,-154.93802479,0.00031498,5]
[312094528,1705615832107,-280.0,0.00033274,15]
[312094530,1705615832117,-532.0,0.0003397,30]
[312094533,1705615832127,-532.0,0.0003398,30]
[312094536,1705615832139,-532.0,0.0003399,30]
[312094540,1705615832149,-4010.37,0.0003499,3]
[312094543,1705615832161,-19060.79918765,0.00035,3]
[312094546,1705615832171,-5529.92915724,0.00035,2]
[312094549,1705615832184,-394.41643947,0.00035,2]
[312094551,1705615832195,-641.91004658,0.00035,2]
[312094630,1705615838296,-3785.92,0.0003499,3]
[312094631,1705615838306,-3592.36268445,0.00035,2]
[312094633,1705615838316,-28621.71731555,0.00035,2]
[312094634,1705615838357,-394.89213205,0.00035,2]
[312094635,1705615838419,-5409.43296545,0.00035,2]
[312094636,1705615838431,-12647.01368349,0.00035,2]
[312094637,1705615838479,-6344.53111971,0.00035,2]
[312094638,1705615838488,-1719.41141957,0.00035,15]
[312094639,1705615838498,-2084.34070549,0.00035,4]
[312094640,1705615838507,-591.69239792,0.00035,2]
[312094641,1705615838519,-333.00867696,0.00035,4]
[312094642,1705615838528,-154.93802479,0.00035,4]
[312094643,1705615838537,-1174.62397262,0.00035,4]
[312094681,1705615841012,-305.75,0.00035,4]
[312094682,1705615841024,-362.68449822,0.00035,4]
[312094683,1705615841035,-10362.43994604,0.00035,4]
[312094684,1705615841047,-782.11774144,0.00035,4]
[312094685,1705615841057,-333.19296413,0.00035,2]
[312094686,1705615841066,-154.92253873,0.00035,4]
[312094687,1705615841075,-5154.7119315,0.00035,4]
[312094689,1705615841085,-590.35908924,0.00035,4]
[312094691,1705615841097,-128.15822999,0.00035,4]
[312094692,1705615841106,-154.92253873,0.00035,2]
[312094694,1705615841115,-501.565566,0.00035616,120]
[312094695,1705615841124,-127.39297468,0.000358,2]
[312094697,1705615841136,-598.64613205,0.000358,2]
[312094699,1705615841146,-122.30887295,0.00036,2]
[312094701,1705615841158,-27.69112705,0.00036,2]
[312094702,1705615841169,-153.5466936,0.00036207,7]
[312094703,1705615841178,-253.71495932,0.0003624,2]
[312094704,1705615841188,-391.0,0.00036601,15]
[312094705,1705615841197,-152.92769789,0.00036804,7]
[312094706,1705615841206,-155.0,0.000369,2]
[312094707,1705615841216,-4737.91512731,0.00037,8]
[312094708,1705615841226,-418.80217228,0.00037,2]
[312094709,1705615841235,-1000.0,0.00037048,10]
[312094710,1705615841244,-216.9676031,0.0003724,2]
[312094711,1705615841253,-153.5466936,0.00037761,7]
[312094712,1705615841262,-44.87679361,0.00037813,7]
[312094713,1705615841377,-1525.53479428,0.00037813,7]
[312094729,1705615843142,-3429.58841211,0.00037813,7]
[312094730,1705615843151,-50000.0,0.00037817,7]
[312094731,1705615843161,-5000.0,0.00037817,7]
[312094732,1705615843170,-5000.0,0.00037819,7]
[312094733,1705615843179,-500.0,0.0003782,2]
[312094734,1705615843188,-467.56211938,0.0003782,2]
[312094735,1705615843198,-155.62226019,0.0003782,2]
[312094736,1705615843207,-50000.0,0.00037821,7]
[312094737,1705615843216,-1045.05948708,0.0003786,4]
[312094738,1705615843225,-3171.10315259,0.00037898,4]
[312094739,1705615843235,-4716.82638211,0.00037898,4]
[312094740,1705615843245,-526.19977784,0.00037898,4]
[312094741,1705615843255,-2857.85483986,0.00037898,2]
[312094742,1705615843264,-364.06569522,0.00037898,4]
[312094743,1705615843275,-631.69416237,0.00037899,2]
[312094744,1705615843284,-2949.983751,0.00037902,2]
[312094745,1705615843293,-1917.860919,0.00037902,2]
[312094746,1705615843303,-165.17593,0.00037902,2]
[312094747,1705615843312,-152.230842,0.00037902,2]
[312094748,1705615843321,-152.23084,0.00037902,2]
[312094749,1705615843331,-1196.44070962,0.00037998,4]
[312094750,1705615843341,-12345.17225304,0.00037998,4]
[312094751,1705615843350,-1251.45335161,0.00037999,4]
[312094752,1705615843359,-1221.57018504,0.00037999,4]
[312094753,1705615843369,-306.43087312,0.00037999,2]
[312094754,1705615843378,-500.0,0.00037999,2]
[312094755,1705615843388,-500.0,0.00037999,2]
[312094756,1705615843397,-500.0,0.00037999,2]
[312094757,1705615843407,-500.0,0.00037999,2]
[312094758,1705615843418,-500.0,0.00037999,2]
[312094759,1705615843427,-500.0,0.00037999,2]
[312094760,1705615843436,-500.0,0.00037999,2]
[312094761,1705615843445,-500.0,0.00037999,2]
[312094762,1705615843454,-487.21638421,0.00037999,2]
[312094763,1705615843463,-500.0,0.00037999,4]
[312094764,1705615843472,-531.90711593,0.00037999,4]
[312094765,1705615843482,-215.99520369,0.00037999,4]
[312094766,1705615843491,-422.65702562,0.00037999,4]
[312094767,1705615843500,-200.38376545,0.00037999,7]
[312094768,1705615843511,-393.37335611,0.00037999,7]
[312094769,1705615843521,-176104.15376855,0.00038,4]
[312094770,1705615843531,-282.83454941,0.00038,3]
[312094771,1705615843540,-683.76182902,0.00038,5]
[312094772,1705615843553,-10837.95274509,0.00038,3]
[312094773,1705615843562,-634.87454706,0.00038,2]
[312094774,1705615843571,-155.0,0.0003827,2]
[312094775,1705615843580,-50000.0,0.00038311,7]
[312094776,1705615843590,-2949.983751,0.00038376,2]
[312094777,1705615843598,-198.10634161,0.00038376,2]
[312094778,1705615843610,-1719.75457739,0.00038376,2]
[312094779,1705615843619,-2137.88596785,0.000385,4]
[312094780,1705615843630,-5000.0,0.00038793,4]
[312094781,1705615843639,-1917.860919,0.0003885,2]
[312094782,1705615843648,-2949.983751,0.0003885,2]
[312094783,1705615843657,-1000.0,0.00039,39]
[312094784,1705615843667,-1264.6620299,0.00039,5]
[312094788,1705615846135,-240.32892389,0.00039,5]
[312094789,1705615846145,-1917.860919,0.00039324,2]
[312094790,1705615846154,-1963.21015711,0.00039324,2]
[312094863,1705616852096,-154.0898994,0.00029913,2]
[312094864,1705616852116,-152.92806292,0.0002996,2]
[312094865,1705616852137,-154.90705577,0.00030136,5]
[312094866,1705616852156,-161.588,0.00030137,2]
[312094867,1705616852176,-154.0898994,0.00030518,7]
[312094868,1705616852195,-3636.80057737,0.00030943,5]
[312094869,1705616852301,-167.847466,0.00030944,2]
[312094870,1705616852321,-153.0,0.00031,2]
[312094871,1705616852341,-153.0,0.00031,2]
[312094872,1705616852360,-161.588,0.00031096,2]
[312094873,1705616852380,-380.0,0.00031244,2]
[312094874,1705616852400,-1059.2543189,0.00031445,2]
[312094875,1705616852420,-161.588,0.00032055,2]
[312094876,1705616852443,-406.42271687,0.00032138,2]
[312094877,1705616852462,-929.9795061,0.00032575,2]
[312094878,1705616852482,-386.32476631,0.00033,2]
[312094879,1705616852502,-161.588,0.00033014,2]
[312094880,1705616852521,-152.92806292,0.00033015,7]
[312094881,1705616852540,-6760.97413379,0.00033708,4]
[312094882,1705616852561,-4084.58,0.00033709,3]
[312094883,1705616852583,-63849.66614178,0.00033719,5]
[312094884,1705616852604,-8716.25243898,0.00033719,5]
[312094885,1705616852625,-2491.94165497,0.00033719,5]
[312094886,1705616852645,-1206.23882079,0.00033793,2]
[312094887,1705616852664,-161.588,0.00033973,2]
[312094888,1705616852683,-154.0898994,0.00034507,7]
[312094889,1705616852703,-161.21858012,0.00034585,7]
[312094890,1705616852723,-154.0898994,0.00034864,7]
[312094891,1705616852742,-161.588,0.00034932,2]
[312094892,1705616852761,-430.86875032,0.0003499,6]
[312094893,1705616852782,-477.5694703,0.00035,4]
[312094894,1705616852801,-591.69239792,0.00035,2]
[312094895,1705616852824,-154.90705577,0.00035,4]
[312094896,1705616852846,-2084.34070549,0.00035,4]
[312094897,1705616852866,-333.00867696,0.00035,4]
[312094898,1705616852886,-154.0898994,0.00035598,7]
[312094899,1705616852907,-96.70951158,0.00035614,4]
[312094902,1705616945099,-154.90705577,0.00032999,5]
[312094903,1705616945119,-283.30260339,0.00033,2]
[312094904,1705616945140,-1401.05315626,0.00033847,2]
[312094905,1705616956005,371.66271466,0.0003218,2]
[312094906,1705616958781,154.90705577,0.00033947,5]
[312094907,1705616976786,154.90705577,0.00033947,5]
[312094908,1705616995207,41.48035838,0.00033947,2]
[312094943,1705617032177,-1345.28220923,0.00033809,5]
[312094944,1705617032187,-291.71260575,0.00033947,2]
[312094945,1705617032196,-718.51731923,0.00033947,4]
[312094946,1705617032204,-550.35503848,0.00033947,4]
[312094947,1705617032233,-418.51762617,0.00033947,4]
[312095045,1705617038295,-3350.43281185,0.00033947,4]
[312095047,1705617038304,-5154.7119315,0.00033947,4]
[312095049,1705617038314,-154.8915759,0.00033947,4]
[312095051,1705617038322,-154.8915759,0.00033947,2]
[312095053,1705617038331,-154.8915759,0.00033947,5]
[312095055,1705617038342,-1719.41141957,0.00035,15]
[312095057,1705617038352,-2084.34070549,0.00035538,4]
[312095058,1705617038362,-591.69239792,0.00035538,2]
[312095060,1705617038372,-333.00867696,0.00035539,4]
[312095062,1705617038381,-11157.84737616,0.00035539,4]
[312095064,1705617038391,-154.90705577,0.00035539,4]
[312095066,1705617038399,-5099.96358604,0.00035539,4]
[312095117,1705617038874,-1661.01054775,0.00035539,4]
[312095119,1705617038883,-151.69082327,0.00035543,2]
[312095121,1705617038895,-150.95004265,0.00035616,7]
[312095123,1705617038906,-804.362509,0.00035616,120]
[312095125,1705617038915,-153.0,0.000357,2]
[312095127,1705617038924,-154.0898994,0.00035723,7]
[312095129,1705617038933,-161.588,0.0003589,2]
[312095131,1705617038943,-1461.5831018,0.000359,2]
[312095133,1705617038952,-183.0,0.00036,2]
[312095135,1705617038962,-428.744075,0.00036575,4]
[312095138,1705617038973,-153.0,0.000366,2]
[312095139,1705617038984,-155.0,0.0003672,2]
[312095141,1705617038992,-154.0898994,0.00036744,7]
[312095143,1705617039001,-161.588,0.00036849,2]
[312095145,1705617039010,-1000.0,0.0003701,10]
[312095147,1705617039020,-167.44197221,0.0003705,2]
[312095149,1705617039029,-215.84548789,0.000371,2]
[312095151,1705617039038,-215.84548789,0.000371,2]
[312095153,1705617039047,-215.84548789,0.000371,2]
[312095155,1705617039056,-215.84548789,0.000371,2]
[312095157,1705617039066,-215.84548789,0.000371,2]
[312095159,1705617039075,-215.84548789,0.000371,2]
[312095161,1705617039083,-215.84548789,0.000371,2]
[312095163,1705617039092,-215.84548789,0.000371,2]
[312095165,1705617039102,-215.84548789,0.000371,2]
[312095167,1705617039111,-215.84548,0.000371,2]
[312095169,1705617039120,-5000.0,0.00037126,2]
[312095171,1705617039128,-154.0898994,0.00037246,7]
[312095173,1705617039138,-250.0,0.00037341,15]
[312095175,1705617039147,-183.0,0.00037397,2]
[312095177,1705617039156,-154.0898994,0.000376,7]
[312095179,1705617039165,-723.0,0.00037691,30]
[312095180,1705617039174,-723.0,0.00037701,30]
[312095182,1705617039183,-284.90461028,0.00037708,2]
[312095184,1705617039192,-3451.64,0.00037709,3]
[312095185,1705617039201,-2396.97,0.00037709,3]
[312095187,1705617039210,-723.0,0.00037711,30]
[312095189,1705617039219,-235.56,0.00037711,30]
[312095190,1705617039228,-873.68475195,0.00037719,4]
[312095195,1705617039310,-154.95351395,0.00037719,4]
[312095197,1705617039322,-328.54634455,0.00037719,4]
[312095199,1705617039331,-15988.18118084,0.00037719,4]
[312095200,1705617039341,-155.4318566,0.00037719,4]
[312095201,1705617039350,-2339.67234834,0.00037719,4]
[312095202,1705617039359,-319.0046286,0.00037719,4]
[312095203,1705617039368,-10799.91264334,0.00037719,7]
[312095204,1705617039378,-154.95351395,0.00037719,2]
[312095205,1705617039387,-155.29532475,0.00037719,4]
[312095206,1705617039396,-5388.77112741,0.00037719,4]
[312095207,1705617039406,-2209.49839801,0.00037719,5]
[312095208,1705617039415,-250.0,0.0003772,7]
[312095209,1705617039425,-500.0,0.0003772,2]
[312095210,1705617039434,-500.0,0.0003772,2]
[312095212,1705617039444,-208.80538298,0.0003772,2]
[312095213,1705617039453,-500.0,0.0003772,2]
[312095214,1705617039462,-473.89163182,0.0003772,2]
[312095215,1705617039471,-191.00089311,0.0003772,2]
[312095216,1705617039480,-638.3727197,0.0003772,2]
[312095217,1705617039489,-500.0,0.0003772,2]
[312095218,1705617039499,-500.0,0.0003772,2]
[312095219,1705617039508,-500.0,0.0003772,2]
[312095220,1705617039519,-500.0,0.0003772,2]
[312095221,1705617039528,-500.0,0.0003772,2]
[312095222,1705617039538,-183.33293983,0.0003772,2]
[312095223,1705617039547,-500.0,0.0003772,2]
[312095224,1705617039557,-500.0,0.0003772,2]
[312095225,1705617039566,-49001.43341778,0.0003772,10]
[312095226,1705617039575,-256.06221171,0.00037721,3]
[312095227,1705617039585,-276000.0,0.00037721,2]
[312095228,1705617039594,-161.588,0.00037808,2]
[312095229,1705617039604,-152.230841,0.00037902,2]
[312095230,1705617039613,-688.53642166,0.00037998,4]
[312095231,1705617039623,-154.9690062,0.00037998,4]
[312095232,1705617039632,-5181.8946989,0.00037998,4]
[312095233,1705617039641,-471.33694125,0.00037999,2]
[312095234,1705617039650,-500.0,0.00037999,4]
[312095235,1705617039659,-500.0,0.00037999,4]
[312095236,1705617039668,-500.0,0.00037999,4]
[312095237,1705617039677,-500.0,0.00037999,4]
[312095238,1705617039686,-294.59443179,0.00037999,4]
[312095239,1705617039695,-434.00164402,0.00037999,4]
[312095240,1705617039704,-394.58414412,0.00037999,4]
[312095241,1705617039713,-391.06889201,0.00037999,4]
[312095242,1705617039723,-500.0,0.00037999,4]
[312095243,1705617039732,-500.0,0.00037999,4]
[312095244,1705617039741,-500.0,0.00037999,4]
[312095245,1705617039751,-519.51420124,0.00037999,4]
[312095246,1705617039760,-500.0,0.00037999,4]
[312095247,1705617039770,-500.0,0.00037999,4]
[312095248,1705617039779,-500.0,0.00037999,4]
[312095249,1705617039788,-500.0,0.00037999,4]
[312095250,1705617039797,-500.0,0.00037999,4]
[312095251,1705617039806,-360.47826785,0.00037999,4]
[312095252,1705617039816,-500.0,0.00037999,7]
[312095253,1705617039825,-500.0,0.00037999,7]
[312095254,1705617039834,-478.77953977,0.00037999,7]
[312095255,1705617039843,-500.0,0.00037999,7]
[312095256,1705617039852,-518.25066983,0.00037999,7]
[312095257,1705617039861,-500.0,0.00037999,7]
[312095258,1705617039870,-500.0,0.00037999,7]
[312095259,1705617039880,-500.0,0.00037999,7]
[312095260,1705617039893,-512.49970487,0.00037999,7]
[312095261,1705617039903,-285189.53034381,0.00038,4]
[312095262,1705617039912,-154.92253873,0.00038,2]
[312095263,1705617039921,-3184.89020531,0.00038,7]
[312095264,1705617039932,-155.0,0.0003809,2]
[312095265,1705617039941,-162.69671502,0.00038255,2]
[312095266,1705617039950,-284.90461025,0.00038256,2]
[312095267,1705617039960,-154.0898994,0.00038274,7]
[312095268,1705617039969,-4999.99,0.00038352,2]
[312095269,1705617039978,-2580.87,0.00038367,2]
[312095270,1705617039988,-2137.88596785,0.000385,4]
[312095271,1705617039996,-1000.0,0.00038757,2]
[312095272,1705617040006,-161.588,0.00038767,2]
[312095273,1705617040015,-284.90461025,0.00038804,2]
[312095274,1705617040024,-1000.0,0.0003899,2]
[312095275,1705617040034,-33962.03591851,0.00039,5]
[312095276,1705617040043,-500.0,0.00039,3]
[312095277,1705617040052,-154.0898994,0.00039058,7]
[312095278,1705617040061,-500.0,0.0003909,7]
[312095279,1705617040071,-154.0898994,0.00039241,7]
[312095280,1705617040081,-150.0,0.00039255,2]
[312095281,1705617040091,-186.0,0.00039267,14]
[312095282,1705617040100,-986.77359389,0.00039324,2]
[312095283,1705617040109,-782.11774144,0.00039324,4]
[312095284,1705617040118,-284.90461025,0.00039352,2]
[312095285,1705617040127,-155.0,0.0003946,2]
[312095286,1705617040136,-6115.03882948,0.00039655,3]
[312095287,1705617040146,-161.588,0.00039726,2]